fUSD/lending_fUSD_20240715
["ID","MTS","AMOUNT","RATE_DAILY","PERIOD"]
[332251041,1721085033316,-5151.0,0.00014,2]
[332251042,1721085033332,-447.64794776,0.00014,2]
[332251043,1721085033342,-11640.01424638,0.00014,2]
[332251068,1721085038283,-753.50015,0.00014,2]
[332251076,1721085038358,-24706.91888027,0.00014,2]
[332251077,1721085038369,-743.53478048,0.00014,2]
[332251078,1721085038381,-4373.27347598,0.00014,2]
[332251079,1721085038392,-503.67891289,0.00014,2]
[332251080,1721085038404,-500.0,0.00014,2]
[332251081,1721085038416,-1590.1,0.00014,2]
[332251082,1721085038427,-2254.22738173,0.00014,2]
[332251083,1721085038438,-36254.79713045,0.00014,2]
[332251084,1721085038453,-2285.26223774,0.00014,2]
[332251085,1721085038464,-446.9083603,0.00014,2]
[332251086,1721085039113,-1085.8962,0.00014,2]
[332251087,1721085039124,-594.06472307,0.00014,2]
[332251088,1721085039195,-1611.42017081,0.00014,2]
[332251089,1721085039207,-1936.04088029,0.00014,2]
[332251090,1721085039274,-17860.16384182,0.00014,2]
[332251091,1721085039285,-64500.99694483,0.00014,2]
[332251092,1721085039296,-2975.5,0.00014,2]
[332251093,1721085039307,-1000.00000014,0.00014,2]
[332251097,1721085040340,-169956.49534584,0.00014,2]
[332251098,1721085040349,-200.0,0.00014,2]
[332251099,1721085040359,-200.0,0.00014,2]
[332251100,1721085040368,-200.0,0.00014,2]
[332251101,1721085040377,-200.0,0.00014,2]
[332251102,1721085040386,-200.0,0.00014,2]
[332251103,1721085040396,-200.0,0.00014,2]
[332251104,1721085040404,-200.0,0.00014,2]
[332251105,1721085040414,-200.0,0.00014,2]
[332251106,1721085040423,-200.0,0.00014,2]
[332251107,1721085040433,-200.0,0.00014,2]
[332251108,1721085040442,-200.0,0.00014,2]
[332251109,1721085040451,-200.0,0.00014,2]
[332251110,1721085040461,-200.0,0.00014,2]
[332251111,1721085040470,-200.0,0.00014,2]
[332251112,1721085040478,-200.0,0.00014,2]
[332251113,1721085040487,-200.0,0.00014,2]
[332251114,1721085040497,-200.0,0.00014,2]
[332251115,1721085040508,-243.0,0.00014,2]
[332251116,1721085040517,-243.0,0.00014,2]
[332251117,1721085040526,-243.0,0.00014,2]
[332251118,1721085040718,-243.0,0.00014,2]
[332251119,1721085040727,-243.0,0.00014,2]
[332251120,1721085040736,-243.0,0.00014,2]
[332251122,1721085040746,-243.0,0.00014,2]
[332251124,1721085040757,-243.0,0.00014,2]
[332251126,1721085040766,-243.0,0.00014,2]
[332251128,1721085040775,-243.0,0.00014,2]
[332251130,1721085040784,-243.0,0.00014,2]
[332251132,1721085040796,-243.0,0.00014,2]
[332251133,1721085040806,-243.0,0.00014,2]
[332251135,1721085040815,-243.0,0.00014,2]
[332251137,1721085040824,-243.0,0.00014,2]
[332251139,1721085040833,-243.0,0.00014,2]
[332251141,1721085040842,-243.0,0.00014,2]
[332251143,1721085040852,-243.0,0.00014,2]
[332251145,1721085040865,-243.0,0.00014,2]
[332251147,1721085040874,-243.0,0.00014,2]
[332251149,1721085040883,-200.0,0.00014,2]
[332251151,1721085040893,-200.0,0.00014,2]
[332251153,1721085040904,-200.0,0.00014,2]
[332251155,1721085040913,-200.0,0.00014,2]
[332251157,1721085040922,-200.0,0.00014,2]
[332251159,1721085040931,-200.0,0.00014,2]
[332251161,1721085040940,-200.0,0.00014,2]
[332251162,1721085040950,-200.0,0.00014,2]
[332251164,1721085040959,-200.0,0.00014,2]
[332251166,1721085040969,-200.0,0.00014,2]
[332251168,1721085040978,-430.0,0.00014,2]
[332251170,1721085040987,-430.0,0.00014,2]
[332251172,1721085040997,-430.0,0.00014,2]
[332251174,1721085041008,-430.0,0.00014,2]
[332251176,1721085041018,-430.0,0.00014,2]
[332251178,1721085041027,-430.0,0.00014,2]
[332251180,1721085041036,-430.0,0.00014,2]
[332251182,1721085041046,-430.0,0.00014,2]
[332251184,1721085041055,-430.0,0.00014,2]
[332251185,1721085041065,-430.0,0.00014,2]
[332251186,1721085041074,-430.0,0.00014,2]
[332251187,1721085041083,-430.0,0.00014,2]
[332251188,1721085041092,-430.0,0.00014,2]
[332251189,1721085041101,-430.0,0.00014,2]
[332251190,1721085041110,-430.0,0.00014,2]
[332251191,1721085041120,-430.0,0.00014,2]
[332251192,1721085041129,-430.0,0.00014,2]
[332251193,1721085041138,-430.0,0.00014,2]
[332251194,1721085041148,-430.0,0.00014,2]
[332251195,1721085041157,-430.0,0.00014,2]
[332251196,1721085041167,-767.47924399,0.00014,2]
[332251197,1721085041176,-86254.85861464,0.00014,2]
[332251198,1721085041190,-26984.00164395,0.00014,2]
[332251199,1721085041201,-473.28023069,0.00014,2]
[332251200,1721085041213,-1917.30000001,0.00014,2]
[332251201,1721085041224,-3304.77660869,0.00014,2]
[332251202,1721085041235,-168775.3581515,0.00014,2]
[332251203,1721085041246,-517.0,0.00014,2]
[332251204,1721085041259,-1428.53893914,0.00014,2]
[332251205,1721085041271,-4609.19369259,0.00014,2]
[332251206,1721085041281,-8576.40447952,0.00014,2]
[332251207,1721085041293,-1288.92999986,0.00014,2]
[332251208,1721085041304,-5646.57884,0.00014,2]
[332251209,1721085041315,-372.30419801,0.00014,2]
[332251210,1721085041326,-4780.76030792,0.00014,2]
[332251237,1721085043555,-1818.44596109,0.00014,2]
[332251238,1721085043566,-1742.18486575,0.00014,2]
[332251239,1721085043577,-2811.37324309,0.00014,2]
[332251240,1721085043588,-520.01920107,0.00014,2]
[332251241,1721085043602,-412.1753019,0.00014,2]
[332251242,1721085043613,-493150.42337605,0.00014,2]
[332251252,1721085046282,-17647.127028,0.00014,2]
[332251253,1721085046294,-797.74011088,0.00014,2]
[332251254,1721085046596,-5273.45621321,0.00014,2]
[332251255,1721085046607,-22595.9517,0.00014,2]
[332251256,1721085046619,-398920.76504178,0.00014,2]
[332251257,1721085046630,-6221.0,0.00014,2]
[332251269,1721085257137,1031.0,0.00027,120]
[332251276,1721085623078,274.0,0.00027,120]
[332251322,1721086231619,-630.86,0.00011034,2]
[332251323,1721086231628,-192.10623542,0.00011098,2]
[332251324,1721086231638,-1000.0,0.00012906,2]
[332251325,1721086231647,-203.29,0.00013023,2]
[332251326,1721086231657,-196.71,0.0001303,2]
[332251327,1721086231666,-250.0,0.00013039,2]
[332251328,1721086231675,-327.02376458,0.00013041,2]
[332251347,1721086237651,-504.3514221,0.00013041,2]
[332251382,1721086238329,-2980.31704664,0.00013041,2]
[332251390,1721086239586,-182.95776668,0.00013041,2]
[332251391,1721086239596,-630.86,0.00013298,2]
[332251392,1721086239608,-1322.90276768,0.00013516,2]
[332251393,1721086239618,-400.0,0.00013543,2]
[332251394,1721086239629,-435.662197,0.0001363,2]
[332251395,1721086239640,-161.02,0.00013699,2]
[332251396,1721086239650,-1026.0,0.000138,2]
[332251397,1721086239660,-500.0,0.00013887,2]
[332251398,1721086239671,-500.0,0.00013888,2]
[332251399,1721086239682,-746.35934508,0.00013889,2]
[332251400,1721086239692,-200.29383153,0.0001389,2]
[332251401,1721086239703,-155.06185702,0.00013899,2]
[332251402,1721086239714,-5245.12565513,0.0001398,3]
[332251403,1721086239727,-736.10038563,0.0001398,3]
[332251404,1721086239741,-806.9219871,0.0001398,3]
[332251405,1721086239753,-364.22343475,0.0001398,3]
[332251406,1721086239765,-1221.69500003,0.0001398,3]
[332251407,1721086239777,-4795.86104104,0.0001398,3]
[332251408,1721086239790,-1459.46820772,0.0001398,3]
[332251409,1721086239802,-5073.7345596,0.0001398,3]
[332251410,1721086239813,-6567.71009032,0.00013989,3]
[332251411,1721086239823,-261.57323239,0.00013989,2]
[332251412,1721086239833,-500.0,0.00013989,2]
[332251413,1721086239843,-411.18595287,0.00013989,2]
[332251414,1721086239853,-381.07837869,0.00013989,2]
[332251415,1721086239864,-4085.22933061,0.0001399,3]
[332251416,1721086239876,-523.5974776,0.0001399,3]
[332251417,1721086239888,-1297.1959,0.0001399,3]
[332251418,1721086239905,-115596.61396279,0.0001399,3]
[332251419,1721086239915,-77356.87649754,0.0001399,3]
[332251420,1721086239928,-3802.96135066,0.0001399,3]
[332251421,1721086239940,-528.33001847,0.00013999,2]
[332251422,1721086239950,-500.0,0.00013999,2]
[332251423,1721086239969,-500.0,0.00013999,2]
[332251424,1721086239984,-500.0,0.00013999,2]
[332251425,1721086239996,-643.19208614,0.00013999,2]
[332251426,1721086240009,-515.48,0.00013999,2]
[332251427,1721086240022,-185.71677785,0.00013999,2]
[332251428,1721086240034,-596.46,0.00013999,2]
[332251429,1721086240046,-500.0,0.00013999,2]
[332251430,1721086240059,-285.22208278,0.00013999,2]
[332251431,1721086240071,-500.0,0.00013999,2]
[332251432,1721086240084,-500.0,0.00013999,2]
[332251434,1721086240096,-291.35843231,0.00013999,2]
[332251436,1721086240108,-9584.66098833,0.00014,2]
[332251437,1721086240122,-3108.12795836,0.00014,2]
[332251438,1721086240136,-1139.11643078,0.00014,2]
[332251439,1721086240149,-23946.79499929,0.00014,2]
[332251445,1721086242713,-1131.4798295,0.00013516,2]
[332251446,1721086242724,-155.0,0.00013999,2]
[332251447,1721086242736,-783866.47123166,0.00014,2]
[332251448,1721086242852,-52157.38090784,0.00014,2]
[332251449,1721086242863,-155.43410383,0.00014,2]
[332251450,1721086242874,-9219.23789379,0.00014,2]
[332251451,1721086242886,-150.0,0.00014,2]
[332251452,1721086242896,-534128.69988699,0.00014,2]
[332251453,1721086243007,-2378.5307728,0.00014,2]
[332251478,1721086245620,-487.94323696,0.00014,2]
[332251479,1721086245632,-2223.67680866,0.00014,2]
[332251480,1721086245644,-670.61111675,0.00014,2]
[332251481,1721086245674,-1188.35,0.00014,2]
[332251482,1721086245831,-2570.41893268,0.00014,2]
[332251483,1721086245843,-380.37468551,0.00014,2]
[332251484,1721086245854,-274.98265258,0.00014,2]
[332251485,1721086245892,-10600.4844649,0.00014,2]
[332251511,1721086644709,156.56,0.00018849,30]
[332251563,1721087326907,156.56,0.00018849,30]
[332251574,1721087383979,166.59,9.814e-05,2]
[332251591,1721087431671,-585.0,0.00010371,2]
[332251592,1721087431680,-617.11,0.00010372,2]
[332251593,1721087431689,-150.0,0.00011097,2]
[332251594,1721087431699,-300.0,0.00011097,2]
[332251595,1721087431707,-4847.07962103,0.00011098,2]
[332251596,1721087431717,-3905.64106294,0.00011098,2]
[332251597,1721087431726,-3076.95946771,0.00011098,2]
[332251598,1721087431735,-3029.40981677,0.00011098,2]
[332251599,1721087431744,-611.78494845,0.00011098,2]
[332251600,1721087431754,-169.58320392,0.00011098,2]
[332251601,1721087431764,-1648.60908372,0.00011098,2]
[332251602,1721087431774,-155.0,0.00011098,2]
[332251603,1721087431783,-436.9346952,0.00011098,2]
[332251604,1721087431792,-1820.30337172,0.00011098,2]
[332251605,1721087431801,-155.0,0.00011098,2]
[332251606,1721087431810,-2217.06109754,0.00011098,2]
[332251607,1721087431819,-1401.59722582,0.00011098,2]
[332251608,1721087431828,-3059.07829794,0.00011098,2]
[332251609,1721087431837,-1439.63004189,0.00011196,2]
[332251610,1721087431846,-1476.37041399,0.00011196,2]
[332251611,1721087431855,-296.96854487,0.00011197,2]
[332251612,1721087431864,-305.3944943,0.00011197,2]
[332251613,1721087431873,-156.0,0.00011199,2]
[332251614,1721087431883,-1191.40858595,0.00011199,2]
[332251615,1721087431894,-1138.39880609,0.00011199,2]
[332251616,1721087431903,-1137.22298689,0.00011199,2]
[332251617,1721087431912,-156.0,0.00011199,2]
[332251618,1721087431921,-935.84003892,0.00011199,2]
[332251619,1721087431930,-155.0,0.00011896,2]
[332251620,1721087431940,-420.0,0.00012193,2]
[332251621,1721087431948,-250.0,0.00012221,2]
[332251622,1721087431958,-12216.06,0.0001224,2]
[332251623,1721087431967,-1894.64,0.0001226,2]
[332251624,1721087431975,-496.19,0.0001226,2]
[332251625,1721087431984,-155.8,0.00012263,2]
[332251626,1721087431993,-448.91,0.0001227,2]
[332251627,1721087432002,-150.0,0.00012276,2]
[332251630,1721087432012,-1000.0,0.00012278,2]
[332251632,1721087432021,-1314.8840523,0.00012302,2]
[332251633,1721087432030,-157.36,0.00012358,2]
[332251635,1721087432039,-250.0,0.00012376,2]
[332251638,1721087432048,-5782.25,0.00012386,2]
[332251639,1721087432057,-882.93,0.00012403,2]
[332251640,1721087432067,-808.37,0.00012403,2]
[332251641,1721087432075,-299.99,0.00012403,2]
[332251642,1721087432085,-150.0,0.000126,2]
[332251643,1721087432094,-617.11,0.00012636,2]
[332251644,1721087432103,-184.76,0.00012637,2]
[332251645,1721087432112,-499.99,0.00012801,2]
[332251646,1721087432121,-200.0,0.00012929,2]
[332251647,1721087432130,-173.7,0.00013049,2]
[332251648,1721087432139,-872.78785618,0.00013128,2]
[332251649,1721087432148,-180.95257,0.00013229,2]
[332251650,1721087432157,-565.646444,0.00013229,2]
[332251651,1721087432166,-266.800636,0.00013229,2]
[332251652,1721087432175,-620.054943,0.00013229,2]
[332251653,1721087432184,-165.04736,0.00013229,2]
[332251654,1721087432193,-244.548812,0.00013229,2]
[332251655,1721087432203,-171.08026,0.00013229,2]
[332251656,1721087432212,-413.369962,0.00013229,2]
[332251657,1721087432221,-377.097629,0.00013229,2]
[332251658,1721087432230,-165.047359,0.00013229,2]
[332251659,1721087432239,-180.95257,0.00013395,2]
[332251660,1721087432248,-565.646444,0.00013395,2]
[332251661,1721087432257,-620.054943,0.00013395,2]
[332251662,1721087432269,-413.369962,0.00013395,2]
[332251663,1721087432278,-377.097629,0.00013395,2]
[332251664,1721087432286,-587.0,0.00013398,2]
[332251665,1721087432296,-653.10534714,0.00013462,2]
[332251666,1721087432305,-241.22453993,0.00013516,2]
[332251667,1721087432314,-787.00033501,0.00013516,2]
[332251668,1721087432323,-627.78159693,0.00013543,2]
[332251669,1721087432333,-607.49042292,0.00013543,2]
[332251670,1721087432342,-722.09432961,0.00013543,2]
[332251671,1721087432351,-582.0252915,0.00013543,2]
[332251672,1721087432360,-227.28835865,0.00013543,2]
[332251673,1721087432369,-180.95257,0.0001356,2]
[332251674,1721087432378,-565.646444,0.0001356,2]
[332251675,1721087432388,-620.054943,0.0001356,2]
[332251676,1721087432397,-413.369962,0.0001356,2]
[332251677,1721087432406,-377.097629,0.0001356,2]
[332251678,1721087432415,-259.1372,0.0001369,2]
[332251679,1721087432424,-190.9388,0.0001369,2]
[332251680,1721087432433,-161.02,0.00013699,2]
[332251681,1721087432442,-180.95257,0.00013725,2]
[332251682,1721087432452,-565.646444,0.00013725,2]
[332251683,1721087432461,-620.054943,0.00013725,2]
[332251684,1721087432470,-413.369962,0.00013725,2]
[332251685,1721087432480,-377.097629,0.00013725,2]
[332251686,1721087432489,-176.93581627,0.00013736,2]
[332251687,1721087432499,-370.86701343,0.00013736,2]
[332251688,1721087432508,-206.26827404,0.00013736,2]
[332251689,1721087432518,-276.51444218,0.00013736,2]
[332251690,1721087432527,-438.1115069,0.00013736,2]
[332251691,1721087432536,-155.15019104,0.00013759,2]
[332251692,1721087432545,-308.61050773,0.00013759,2]
[332251693,1721087432554,-155.0,0.00013759,2]
[332251694,1721087432564,-189.08352292,0.00013759,2]
[332251695,1721087432573,-174.91614485,0.00013759,2]
[332251696,1721087432582,-196.48313801,0.00013759,2]
[332251697,1721087432592,-155.46974383,0.00013759,2]
[332251698,1721087432600,-367.07162065,0.00013759,2]
[332251699,1721087432610,-171.69384364,0.00013759,2]
[332251700,1721087432619,-204.48813899,0.00013759,2]
[332251701,1721087432628,-158.09264457,0.00013759,2]
[332251702,1721087432637,-155.0,0.00013759,2]
[332251703,1721087432647,-155.0,0.00013759,2]
[332251704,1721087432656,-329.18898712,0.00013759,2]
[332251705,1721087432665,-194.87156642,0.00013759,2]
[332251706,1721087432674,-367.30615013,0.00013759,2]
[332251707,1721087432683,-203.02785889,0.00013759,2]
[332251708,1721087432693,-244.62743291,0.00013759,2]
[332251709,1721087432702,-264.7511771,0.00013759,2]
[332251710,1721087432711,-155.0,0.00013759,2]
[332251711,1721087432720,-163.97037707,0.00013759,2]
[332251712,1721087432729,-379.53669089,0.00013759,2]
[332251713,1721087432738,-383.92290817,0.00013764,2]
[332251714,1721087432747,-194.17216175,0.0001379,2]
[332251715,1721087432756,-180.26444835,0.0001379,2]
[332251716,1721087432767,-2891.793,0.0001379,2]
[332251717,1721087432776,-363.7067,0.0001379,2]
[332251718,1721087432785,-22266.6348,0.0001379,2]
[332251719,1721087432794,-901.503,0.0001379,2]
[332251720,1721087432804,-4207.4405,0.0001379,2]
[332251721,1721087432813,-155.0,0.00013802,2]
[332251722,1721087432822,-155.64538712,0.00013802,2]
[332251723,1721087432832,-419.04529889,0.00013802,2]
[332251724,1721087432841,-346.93460697,0.00013802,2]
[332251725,1721087432850,-161.89151382,0.00013802,2]
[332251726,1721087432859,-323.80868065,0.00013802,2]
[332251727,1721087432868,-195.36811445,0.00013802,2]
[332251728,1721087432877,-155.57295146,0.00013802,2]
[332251729,1721087432887,-155.22813673,0.00013802,2]
[332251730,1721087432899,-156.02718558,0.00013802,2]
[332251731,1721087432909,-299.18484112,0.00013802,2]
[332251732,1721087432917,-155.37355018,0.00013802,2]
[332251733,1721087432926,-155.0,0.00013802,2]
[332251734,1721087432936,-356.38582122,0.00013802,2]
[332251735,1721087432945,-1000.0,0.00013813,2]
[332251736,1721087432955,-194.17216175,0.00013818,2]
[332251737,1721087432964,-194.17216175,0.00013845,2]
[332251738,1721087432976,-155.0,0.00013849,2]
[332251739,1721087432985,-155.0,0.00013849,2]
[332251740,1721087432994,-518.06612514,0.00013849,2]
[332251741,1721087433004,-155.14707498,0.00013849,2]
[332251742,1721087433014,-155.0,0.00013849,2]
[332251743,1721087433023,-218.30797814,0.00013849,2]
[332251744,1721087433032,-2357.0,0.0001386,2]
[332251745,1721087433041,-194.17216175,0.00013873,2]
[332251746,1721087433050,-461.83,0.0001388,3]
[332251747,1721087433059,-230.92,0.0001388,3]
[332251748,1721087433069,-230.92,0.0001388,3]
[332251749,1721087433078,-500.0,0.00013888,2]
[332251750,1721087433087,-500.0,0.00013889,2]
[332251751,1721087433096,-500.0,0.00013889,2]
[332251752,1721087433105,-500.0,0.00013889,2]
[332251753,1721087433114,-571.6,0.00013889,2]
[332251754,1721087433123,-500.0,0.00013889,2]
[332251755,1721087433133,-500.0,0.00013889,2]
[332251756,1721087433142,-500.0,0.00013889,2]
[332251757,1721087433151,-20379.0301,0.0001389,2]
[332251758,1721087433160,-245000.0,0.0001389,2]
[332251759,1721087433169,-87984.5677,0.0001389,2]
[332251760,1721087433178,-220.24,0.0001389,3]
[332251761,1721087433187,-165.04736,0.00013891,2]
[332251762,1721087433196,-171.08026,0.00013891,2]
[332251763,1721087433205,-180.95257,0.00013891,2]
[332251764,1721087433214,-565.646444,0.00013891,2]
[332251765,1721087433223,-620.054943,0.00013891,2]
[332251766,1721087433232,-413.369962,0.00013891,2]
[332251767,1721087433242,-377.097629,0.00013891,2]
[332251768,1721087433251,-155.0,0.00013899,2]
[332251769,1721087433262,-207.91791673,0.00013899,2]
[332251770,1721087433271,-39359.9646,0.000139,2]
[332251771,1721087433280,-486.56,0.000139,2]
[332251772,1721087433289,-1000.0,0.000139,2]
[332251773,1721087433299,-194.17216175,0.000139,2]
[332251774,1721087433307,-157.36,0.00013903,2]
[332251775,1721087433317,-180.2644483,0.00013913,2]
[332251776,1721087433325,-533.6633,0.0001393,2]
[332251777,1721087433334,-475.72,0.00013944,2]
[332251778,1721087433344,-500.0,0.00013944,2]
[332251779,1721087433353,-571.6,0.00013944,2]
[332251780,1721087433362,-500.0,0.00013944,2]
[332251781,1721087433371,-500.0,0.00013944,2]
[332251782,1721087433379,-343.30444946,0.00013944,2]
[332251783,1721087433387,-1250.0,0.00013987,3]
[332251784,1721087433396,-312.27164721,0.00013989,2]
[332251785,1721087433405,-500.0,0.00013989,2]
[332251786,1721087433414,-500.0,0.00013989,2]
[332251787,1721087433423,-235.68358109,0.00013989,2]
[332251788,1721087433432,-407.1843457,0.00013998,2]
[332251789,1721087433441,-10129.8148752,0.00013998,2]
[332251790,1721087433450,-2438.4320311,0.00013998,2]
[332251791,1721087433459,-289.4595582,0.00013999,2]
[332251792,1721087433469,-500.0,0.00013999,2]
[332251793,1721087433478,-500.0,0.00013999,2]
[332251794,1721087433487,-571.6,0.00013999,2]
[332251795,1721087433496,-500.0,0.00013999,2]
[332251796,1721087433505,-500.0,0.00013999,2]
[332251797,1721087433516,-1401.82347801,0.00013999,7]
[332251798,1721087433526,-42273.63219747,0.00014,2]
[332251799,1721087433539,-412401.0001218,0.00014,2]
[332251800,1721087433551,-32397.97942765,0.00014,2]
[332251801,1721087433566,-5439.10532953,0.00014,2]
[332251802,1721087433577,-9299.18366164,0.00014,2]
[332251803,1721087433592,-270.03107511,0.00014,2]
[332251804,1721087433604,-4461.3726091,0.00014,2]
[332251805,1721087433615,-409.23302,0.00014,2]
[332251806,1721087433626,-20103.16901246,0.00014,2]
[332251807,1721087433637,-70208.49001581,0.00014,2]
[332251819,1721087438054,-358.8214898,0.00011896,2]
[332251820,1721087438064,-413.67982935,0.00013736,2]
[332251821,1721087438073,-254.48154078,0.00013759,2]
[332251822,1721087438082,-2662.86,0.00013889,2]
[332251823,1721087438091,-2662.86,0.00013944,2]
[332251824,1721087438100,-155.09351335,0.00013999,2]
[332251825,1721087438109,-2662.86,0.00013999,2]
[332251826,1721087438118,-10517.87959086,0.00014,2]
[332251827,1721087438129,-28462.08544533,0.00014,2]
[332251828,1721087438144,-179636.19040591,0.00014,2]
[332251861,1721087438740,-58320.41621122,0.00014,2]
[332251862,1721087439114,-1437.652988,0.00014,2]
[332251865,1721087439626,-409.47065039,0.00014,2]
[332251866,1721087439679,-1395.40920272,0.00014,2]
[332251867,1721087439691,-5722.66738639,0.00014,2]
[332251868,1721087439702,-657.08764529,0.00014,2]
[332251869,1721087439713,-586.52200055,0.00014,2]
[332251870,1721087439892,-5899.60995737,0.00014,2]
[332251871,1721087439907,-6436.47576278,0.00014,2]
[332251872,1721087439919,-2896.5181005,0.00014,2]
[332251873,1721087439930,-16040.5,0.00014,2]
[332251896,1721087442677,-418.91555395,0.00014,2]
[332251897,1721087442731,-13501.70307668,0.00014,2]
[332251898,1721087442786,-969709.62123552,0.00014,2]
[332251899,1721087442794,-3000.0,0.00014,2]
[332251900,1721087442803,-150.0,0.00014,2]
[332251901,1721087442812,-17130.63797388,0.00014,3]
[332251902,1721087442822,-701.11,0.00014,3]
[332251903,1721087442833,-3397.93999999,0.00014,3]
[332251904,1721087442852,-131265.7783407,0.00014,3]
[332251905,1721087442862,-3000.0,0.00014,3]
[332251906,1721087442871,-3000.0,0.00014,3]
[332251907,1721087442880,-1125.26061865,0.00014,2]
[332251908,1721087442889,-91000.0,0.00014,2]
[332251909,1721087442899,-1603.78894463,0.00014,2]
[332251910,1721087442910,-971.7969121,0.00014008,2]
[332251911,1721087442919,-169.360097,0.00014008,2]
[332251912,1721087442929,-552.85,0.00014027,2]
[332251913,1721087442938,-3372.97641973,0.00014036,2]
[332251914,1721087442947,-180.2644483,0.00014037,2]
[332251915,1721087442957,-500.0,0.00014044,2]
[332251916,1721087442966,-502.07207423,0.00014044,2]
[332251917,1721087442975,-500.0,0.00014053,2]
[332251918,1721087442986,-571.6,0.00014053,2]
[332251919,1721087442996,-500.0,0.00014053,2]
[332251920,1721087443005,-495.01789322,0.00014053,2]
[332251921,1721087443014,-2662.86,0.00014053,2]
[332251922,1721087443027,-610.98973931,0.00014054,2]
[332251923,1721087443035,-1344.63,0.00014055,2]
[332251924,1721087443044,-151.34341,0.00014066,2]
[332251925,1721087443054,-182.969527,0.00014066,2]
[332251926,1721087443062,-1033.424905,0.00014066,2]
[332251927,1721087443071,-165.04736,0.00014066,2]
[332251928,1721087443081,-973.012755,0.00014066,2]
[332251929,1721087443090,-171.080262,0.00014066,2]
[332251930,1721087443100,-176.931597,0.00014066,2]
[332251931,1721087443109,-2121.089174,0.00014066,2]
[332251932,1721087443119,-520.567104,0.00014066,2]
[332251933,1721087443129,-552.85,0.00014082,2]
[332251934,1721087443138,-61642.24128368,0.00014088,2]
[332251935,1721087443147,-500.0,0.00014099,2]
[332251936,1721087443156,-279.64040534,0.00014099,2]
[332251938,1721087443165,-500.0,0.00014102,2]
[332251940,1721087443174,-151.0,0.00014108,2]
[332251942,1721087443182,-151.0,0.00014108,2]
[332251944,1721087443190,-500.0,0.00014108,2]
[332251945,1721087443199,-571.6,0.00014108,2]
[332251946,1721087443208,-500.0,0.00014108,2]
[332251947,1721087443217,-2662.86,0.00014108,2]
[332251948,1721087443226,-500.0,0.00014111,2]
[332251949,1721087443235,-151.0,0.00014111,2]
[332251950,1721087443243,-500.0,0.0001412,2]
[332251951,1721087443252,-500.0,0.00014128,2]
[332251952,1721087443260,-552.85,0.00014136,2]
[332251953,1721087443270,-151.0,0.00014136,2]
[332251954,1721087443279,-500.0,0.00014137,2]
[332251955,1721087443288,-500.0,0.00014146,2]
[332251956,1721087443297,-500.0,0.00014154,2]
[332251958,1721087443306,-500.0,0.00014155,2]
[332251959,1721087443315,-151.0,0.00014158,2]
[332251960,1721087443325,-151.0,0.00014158,2]
[332251961,1721087443334,-234.680994,0.00014158,2]
[332251962,1721087443343,-151.0,0.00014158,2]
[332251963,1721087443352,-151.0,0.00014158,2]
[332251964,1721087443361,-153.130148,0.00014158,2]
[332251965,1721087443370,-151.211567,0.00014158,2]
[332251966,1721087443379,-151.0,0.00014158,2]
[332251967,1721087443388,-151.0,0.00014158,2]
[332251969,1721087443397,-151.0,0.00014158,2]
[332251970,1721087443406,-151.0,0.00014158,2]
[332251971,1721087443416,-151.0,0.00014158,2]
[332251972,1721087443425,-151.0,0.00014158,2]
[332251973,1721087443434,-151.351911,0.00014158,2]